[Event "Mitropa Online Cup Women 2021"]
[Site "Hybrid"]
[Date "2021.05.04"]
[Round "9.1"]
[White "Guichard, Pauline"]
[Black "Schneider, Jana"]
[Result "1/2-1/2"]
[ECO "C13"]
[WhiteElo "2415"]
[BlackElo "2296"]
[Annotator "NA"]
[PlyCount "79"]
[EventDate "2021.05.04"]
[EventType "team-tourn"]
[EventCountry "NET"]
[SourceTitle "playchess.com"]
[Source "ChessBase"]
[SourceQuality "1"]
[WhiteTeam "France"]
[BlackTeam "Germany"]
[WhiteTeamCountry "FRA"]
[BlackTeamCountry "GER"]
[TimeControl "40/5400+30:1800+30"]

1. d4 {[%emt 0:00:00]} d5 {[%emt 0:00:10]} 2. Nf3 {[%emt 0:00:15]} Nf6 {[%emt 0:00:09]} 3. Bf4 {[%emt 0:00:10]} e6 {[%emt 0:00:17]} 4. Nbd2 {[%emt 0:00:10]} Bd6 {[%emt 0:00:36]} 5. Bg5 {[%emt 0:00:09]} O-O {[%emt 0:12:23]} 6. e4 {[%emt 0:00:44]} dxe4 {[%emt 0:00:48]} 7. Nxe4 {[%emt 0:00:09]} Be7 {[%emt 0:00:12]} 8. Bxf6 {[%emt 0:00:44]} Bxf6 {[%emt 0:00:10]} 9. Qd3 {[%emt 0:00:17]} Be7 {[%emt 0:10:25]} 10. O-O-O {[%emt 0:01:24]} Na6 {[%emt 0:09:59]} 11. Kb1 {[%emt 0:13:14]} c5 {[%emt 0:04:18]} 12. h4 {[%emt 0:11:38]} Nb4 {[%emt 0:03:07]} 13. Qd2 {[%emt 0:01:16]} cxd4 {[%emt 0:01:19]} 14. Nxd4 {[%emt 0:07:08]} e5 {[%emt 0:03:39]} 15. Nb5 {[%emt 0:03:36]} Bf5 {[%emt 0:04:56]} 16. Nbc3 {[%emt 0:01:09]} Qxd2 {[%emt 0:16:24]} 17. Rxd2 {[%emt 0:00:15]} Rfd8 {[%emt 0:00:20]} 18. Rxd8+ {[%emt 0:03:13]} Rxd8 {[%emt 0:00:09]} 19. Be2 {[%emt 0:00:43]} Nd5 {[%emt 0:10:54]} 20. Nxd5 {[%emt 0:07:29]} Rxd5 {[%emt 0:00:06]} 21. Ng3 {[%emt 0:00:13]} Be6 {[%emt 0:02:51]} 22. Bc4 {[%emt 0:06:53]} Rd2 {[%emt 0:01:05]} 23. Ne4 {[%emt 0:13:18]} Rd4 {[%emt 0:00:12]} 24. Bxe6 {[%emt 0:00:14]} Rxe4 {[%emt 0:00:20]} 25. Bd5 {[%emt 0:03:21]} Re2 {[%emt 0:00:13]} 26. Bxb7 {[%emt 0:02:30]} Rxf2 {[%emt 0:00:15]} 27. Kc1 {[%emt 0:10:49]} f5 {[%emt 0:00:26]} 28. Rd1 {[%emt 0:05:44]} Bxh4 {[%emt 0:01:06]} 29. Rd7 {[%emt 0:00:28]} Bg5+ {[%emt 0:02:02]} 30. Kd1 {[%emt 0:00:21]} h5 {[%emt 0:03:49]} 31. c4 {[%emt 0:03:45]} Rxb2 {[%emt 0:02:59]} 32. c5 {[%emt 0:00:10]} Rb1+ {[%emt 0:04:43]} 33. Ke2 {[%emt 0:00:13]} Rb2+ {[%emt 0:00:32]} 34. Kd1 {[%emt 0:00:17]} e4 {[%emt 0:04:33]} 35. c6 {[%emt 0:00:12]} Bf4 {[%emt 0:00:15]} 36. c7 {[%emt 0:01:31]} Rb1+ {[%emt 0:00:59]} 37. Ke2 {[%emt 0:00:19]} Rb2+ {[%emt 0:00:05]} 38. Kd1 {[%emt 0:00:18]} Rb1+ {[%emt 0:01:30]} 39. Ke2 {[%emt 0:00:11]} Rb2+ {[%emt 0:00:06]} 40. Kd1 {[%emt 0:00:00]} 1/2-1/2

[Event "Mitropa Online Cup Women 2021"]
[Site "Hybrid"]
[Date "2021.05.04"]
[Round "9.1"]
[White "Klek, Hanna Marie"]
[Black "Navrotescu, Andreea"]
[Result "1/2-1/2"]
[ECO "B70"]
[WhiteElo "2302"]
[BlackElo "2247"]
[Annotator "NA"]
[PlyCount "118"]
[EventDate "2021.05.04"]
[EventType "team-tourn"]
[EventCountry "NET"]
[SourceTitle "playchess.com"]
[Source "ChessBase"]
[SourceQuality "1"]
[WhiteTeam "GER"]
[BlackTeam "FRA"]
[WhiteTeamCountry "GER"]
[TimeControl "40/5400+30:1800+30"]

1. e4 {[%emt 0:00:00]} c5 {[%emt 0:00:07]} 2. Nf3 {[%emt 0:00:06]} d6 {[%emt 0:00:06]} 3. d4 {[%emt 0:00:06]} cxd4 {[%emt 0:00:03]} 4. Nxd4 {[%emt 0:00:04]} Nf6 {[%emt 0:00:06]} 5. Nc3 {[%emt 0:00:06]} g6 {[%emt 0:00:04]} 6. Bd3 {[%emt 0:03:45]} Bg7 {[%emt 0:01:43]} 7. O-O {[%emt 0:00:37]} Nc6 {[%emt 0:00:58]} 8. Nde2 {[%emt 0:00:25]} O-O {[%emt 0:00:45]} 9. Nd5 {[%emt 0:07:24]} Ne5 {[%emt 0:03:59]} 10. Ng3 {[%emt 0:01:42]} Be6 {[%emt 0:03:57]} 11. f4 {[%emt 0:08:48]} Nxd3 {[%emt 0:02:22]} 12. Nxf6+ {[%emt 0:05:03]} Bxf6 {[%emt 0:00:56]} 13. cxd3 {[%emt 0:03:26]} Qb6+ {[%emt 0:06:25]} 14. Kh1 {[%emt 0:00:14]} Rfc8 {[%emt 0:02:35]} 15. f5 {[%emt 0:10:29]} Bd7 {[%emt 0:00:18]} 16. Rb1 {[%emt 0:04:21]} Qa6 {[%emt 0:01:11]} 17. a3 {[%emt 0:03:38]} Ba4 {[%emt 0:02:01]} 18. b3 {[%emt 0:02:06]} Bb5 {[%emt 0:00:06]} 19. Rf3 {[%emt 0:00:08]} Rc3 {[%emt 0:02:32]} 20. Bb2 {[%emt 0:12:31]} Rxd3 {[%emt 0:00:51]} 21. Qc1 {[%emt 0:00:50]} Qc6 {[%emt 0:12:13]} 22. Bxf6 {[%emt 0:09:20]} Qxc1+ {[%emt 0:03:28]} 23. Rxc1 {[%emt 0:00:05]} Rxf3 {[%emt 0:00:13]} 24. gxf3 {[%emt 0:00:24]} exf6 {[%emt 0:00:07]} 25. Rc7 {[%emt 0:00:18]} Bc6 {[%emt 0:01:50]} 26. b4 {[%emt 0:03:00]} a6 {[%emt 0:00:30]} 27. fxg6 {[%emt 0:03:18]} hxg6 {[%emt 0:01:05]} 28. Ne2 {[%emt 0:00:41]} Rb8 {[%emt 0:13:27]} 29. Nd4 {[%emt 0:02:42]} Be8 {[%emt 0:00:49]} 30. Nb3 {[%emt 0:02:17]} Bb5 {[%emt 0:06:10]} 31. Na5 {[%emt 0:02:29]} b6 {[%emt 0:00:07]} 32. Nb7 {[%emt 0:00:23]} Bc4 {[%emt 0:06:43]} 33. Rxc4 {[%emt 0:03:19]} Rxb7 {[%emt 0:00:05]} 34. Rc6 {[%emt 0:00:11]} Kf8 {[%emt 0:00:11]} 35. Rxd6 {[%emt 0:00:22]} Ke7 {[%emt 0:00:04]} 36. Rc6 {[%emt 0:00:26]} a5 {[%emt 0:08:10]} 37. Kg2 {[%emt 0:00:57]} a4 {[%emt 0:03:46]} 38. Kf2 {[%emt 0:03:42]} Rd7 {[%emt 0:00:13]} 39. Ke2 {[%emt 0:01:30]} Rd6 {[%emt 0:03:05]} 40. Rc7+ {[%emt 0:00:00]} Rd7 {[%emt 0:00:00]} 41. Rc6 {[%emt 0:15:57]} Rd6 {[%emt 0:02:50]} 42. Rc8 {[%emt 0:00:10]} f5 {[%emt 0:07:51]} 43. exf5 {[%emt 0:04:19]} gxf5 {[%emt 0:00:16]} 44. Ke3 {[%emt 0:01:17]} Rh6 {[%emt 0:03:21]} 45. Rc2 {[%emt 0:07:20]} Rh4 {[%emt 0:01:05]} 46. Rd2 {[%emt 0:03:30]} Ke6 {[%emt 0:02:01]} 47. b5 {[%emt 0:01:09]} Ke5 {[%emt 0:02:39]} 48. f4+ {[%emt 0:03:05]} Ke6 {[%emt 0:00:10]} 49. Rc2 {[%emt 0:00:26]} Kd5 {[%emt 0:00:37]} 50. Rc6 {[%emt 0:00:24]} Rh3+ {[%emt 0:00:18]} 51. Kf2 {[%emt 0:00:13]} Rxh2+ {[%emt 0:00:23]} 52. Kg3 {[%emt 0:00:29]} Ra2 {[%emt 0:00:11]} 53. Kh4 {[%emt 0:00:58]} Rxa3 {[%emt 0:01:42]} 54. Kg5 {[%emt 0:00:42]} Rb3 {[%emt 0:06:13]} 55. Rxb6 {[%emt 0:00:07]} Ke4 {[%emt 0:00:10]} 56. Ra6 {[%emt 0:01:31]} Rb4 {[%emt 0:01:59]} 57. b6 {[%emt 0:01:58]} f6+ {[%emt 0:00:25]} 58. Kxf6 {[%emt 0:00:06]} Kxf4 {[%emt 0:00:05]} 59. b7 {[%emt 0:00:16]} Rxb7 {[%emt 0:00:31]} 1/2-1/2

[Event "Mitropa Online Cup Women 2021"]
[Site "Hybrid"]
[Date "2021.05.04"]
[Round "9.1"]
[White "Lubbe, Melanie"]
[Black "Afraoui, Anaelle"]
[Result "1-0"]
[ECO "B07"]
[WhiteElo "2278"]
[BlackElo "2106"]
[Annotator "NA"]
[PlyCount "81"]
[EventDate "2021.05.04"]
[EventType "team-tourn"]
[EventCountry "NET"]
[SourceTitle "playchess.com"]
[Source "ChessBase"]
[SourceQuality "1"]
[WhiteTeam "Germany"]
[BlackTeam "France"]
[WhiteTeamCountry "GER"]
[BlackTeamCountry "FRA"]
[TimeControl "40/5400+30:1800+30"]

1. e4 {[%emt 0:00:00]} d6 {[%emt 0:00:24]} 2. d4 {[%emt 0:00:12]} Nf6 {[%emt 0:00:13]} 3. Nc3 {[%emt 0:00:17]} g6 {[%emt 0:00:16]} 4. h3 {[%emt 0:00:24]} c6 {[%emt 0:06:18]} 5. g4 {[%emt 0:01:07]} b5 {[%emt 0:02:10]} 6. Bg2 {[%emt 0:03:08]} b4 {[%emt 0:01:27]} 7. Nce2 {[%emt 0:02:28]} h5 {[%emt 0:02:06]} 8. g5 {[%emt 0:02:30]} Nfd7 {[%emt 0:00:12]} 9. f4 {[%emt 0:00:56]} Bg7 {[%emt 0:00:58]} 10. Nf3 {[%emt 0:06:33]} O-O {[%emt 0:02:13]} 11. f5 {[%emt 0:05:47]} Ba6 {[%emt 0:13:45]} 12. fxg6 {[%emt 0:07:59]} fxg6 {[%emt 0:01:21]} 13. Nf4 {[%emt 0:00:43]} Rxf4 {[%emt 0:06:43]} 14. Bxf4 {[%emt 0:00:09]} Qa5 {[%emt 0:02:01]} 15. Kf2 {[%emt 0:16:39]} Nb6 {[%emt 0:12:54]} 16. e5 {[%emt 0:15:11]} N8d7 {[%emt 0:03:22]} 17. exd6 {[%emt 0:02:04]} exd6 {[%emt 0:03:07]} 18. Re1 {[%emt 0:01:16]} Qf5 {[%emt 0:05:14]} 19. Kg3 {[%emt 0:04:48]} Nc4 {[%emt 0:14:05]} 20. Nh4 {[%emt 0:04:16]} Qf7 {[%emt 0:03:38]} 21. Bxc6 {[%emt 0:02:40]} Rf8 {[%emt 0:02:09]} 22. Qf3 {[%emt 0:01:55]} Ndb6 {[%emt 0:02:22]} 23. Be4 {[%emt 0:02:43]} Bxd4 {[%emt 0:02:16]} 24. Nxg6 {[%emt 0:02:27]} Ne5 {[%emt 0:00:30]} 25. Bxe5 {[%emt 0:04:49]} Bxe5+ {[%emt 0:02:13]} 26. Kg2 {[%emt 0:01:32]} Qxf3+ {[%emt 0:01:54]} 27. Bxf3 {[%emt 0:00:05]} Rxf3 {[%emt 0:04:30]} 28. Kxf3 {[%emt 0:00:40]} Bxb2 {[%emt 0:01:11]} 29. Rad1 {[%emt 0:00:29]} Nc4 {[%emt 0:01:03]} 30. Re7 {[%emt 0:01:35]} Bb5 {[%emt 0:00:59]} 31. Rxa7 {[%emt 0:00:56]} Bc3 {[%emt 0:01:00]} 32. Ne7+ {[%emt 0:03:25]} Kf8 {[%emt 0:00:51]} 33. Nf5 {[%emt 0:02:24]} Bc6+ {[%emt 0:01:43]} 34. Kf2 {[%emt 0:00:43]} Bd2 {[%emt 0:00:28]} 35. g6 {[%emt 0:01:11]} Be4 {[%emt 0:00:48]} 36. Rxd2 {[%emt 0:01:14]} Bxf5 {[%emt 0:00:31]} 37. Rd4 {[%emt 0:01:03]} Be6 {[%emt 0:00:12]} 38. g7+ {[%emt 0:00:37]} Kg8 {[%emt 0:00:53]} 39. Rf4 {[%emt 0:00:20]} Kh7 {[%emt 0:00:21]} 40. Rf8 {[%emt 0:00:00]} Bg8 {[%emt 0:00:00]} 41. Raa8 {[%emt 0:01:23]} 1-0

[Event "Mitropa Online Cup Women 2021"]
[Site "Hybrid"]
[Date "2021.05.04"]
[Round "9.1"]
[White "Thomas, Anysia"]
[Black "Muetsch, Annmarie"]
[Result "1/2-1/2"]
[ECO "E94"]
[WhiteElo "2164"]
[BlackElo "2271"]
[Annotator "NA"]
[PlyCount "43"]
[EventDate "2021.05.04"]
[EventType "team-tourn"]
[EventCountry "NET"]
[SourceTitle "playchess.com"]
[Source "ChessBase"]
[SourceQuality "1"]
[WhiteTeam "France"]
[BlackTeam "Germany"]
[WhiteTeamCountry "FRA"]
[BlackTeamCountry "GER"]
[TimeControl "40/5400+30:1800+30"]

1. d4 {[%emt 0:00:00]} Nf6 {[%emt 0:00:08]} 2. c4 {[%emt 0:00:10]} g6 {[%emt 0:00:07]} 3. Nc3 {[%emt 0:00:13]} Bg7 {[%emt 0:00:07]} 4. e4 {[%emt 0:00:17]} d6 {[%emt 0:00:07]} 5. Nf3 {[%emt 0:00:11]} O-O {[%emt 0:00:14]} 6. Be2 {[%emt 0:00:27]} Na6 {[%emt 0:00:56]} 7. O-O {[%emt 0:00:42]} e5 {[%emt 0:00:08]} 8. Be3 {[%emt 0:00:27]} c6 {[%emt 0:00:57]} 9. Re1 {[%emt 0:00:21]} Ng4 {[%emt 0:05:08]} 10. Bg5 {[%emt 0:00:23]} Qc7 {[%emt 0:00:17]} 11. d5 {[%emt 0:01:28]} f5 {[%emt 0:13:54]} 12. exf5 {[%emt 0:02:47]} Bxf5 {[%emt 0:00:19]} 13. h3 {[%emt 0:14:20]} Nf6 {[%emt 0:07:22]} 14. Be3 {[%emt 0:07:29]} c5 {[%emt 0:11:16]} 15. a3 {[%emt 0:04:15]} Rae8 {[%emt 0:02:59]} 16. Nb5 {[%emt 0:06:05]} Qb8 {[%emt 0:02:06]} 17. b4 {[%emt 0:16:35]} Bd7 {[%emt 0:07:53]} 18. Rb1 {[%emt 0:04:00]} Nh5 {[%emt 0:02:16]} 19. Ng5 {[%emt 0:06:16]} Nf6 {[%emt 0:06:51]} 20. Nf3 {[%emt 0:08:23]} Nh5 {[%emt 0:04:03]} 21. Nd2 {[%emt 0:13:24]} Nf6 {[%emt 0:05:35]} 22. Nf3 {[%emt 0:01:57]} 1/2-1/2

[Event "Mitropa Online Cup Women 2021"]
[Site "Hybrid"]
[Date "2021.05.04"]
[Round "9.2"]
[White "Gueci, Tea"]
[Black "Froewis, Annika"]
[Result "1-0"]
[ECO "C54"]
[WhiteElo "2204"]
[BlackElo "2143"]
[Annotator "NA"]
[PlyCount "75"]
[EventDate "2021.05.04"]
[EventType "team-tourn"]
[EventCountry "NET"]
[SourceTitle "playchess.com"]
[Source "ChessBase"]
[SourceQuality "1"]
[WhiteTeam "Italy"]
[BlackTeam "Austria"]
[WhiteTeamCountry "ITA"]
[BlackTeamCountry "AUT"]
[TimeControl "40/5400+30:1800+30"]

1. e4 {[%emt 0:00:00]} e5 {[%emt 0:00:05]} 2. Nf3 {[%emt 0:00:03]} Nc6 {[%emt 0:00:03]} 3. Bc4 {[%emt 0:00:04]} Bc5 {[%emt 0:00:10]} 4. c3 {[%emt 0:00:08]} Nf6 {[%emt 0:00:03]} 5. d4 {[%emt 0:00:07]} exd4 {[%emt 0:00:22]} 6. e5 {[%emt 0:00:02]} d5 {[%emt 0:01:35]} 7. Bb5 {[%emt 0:00:10]} Ne4 {[%emt 0:00:17]} 8. cxd4 {[%emt 0:00:06]} Bb6 {[%emt 0:03:42]} 9. Nc3 {[%emt 0:01:29]} O-O {[%emt 0:02:59]} 10. O-O {[%emt 0:08:58]} Bg4 {[%emt 0:13:12]} 11. Be3 {[%emt 0:08:33]} Nxc3 {[%emt 0:07:56]} 12. bxc3 {[%emt 0:00:18]} f6 {[%emt 0:05:28]} 13. exf6 {[%emt 0:03:01]} Qxf6 {[%emt 0:01:02]} 14. Be2 {[%emt 0:01:29]} Bxf3 {[%emt 0:06:09]} 15. Bxf3 {[%emt 0:01:56]} Ne7 {[%emt 0:00:14]} 16. Qd2 {[%emt 0:04:41]} h6 {[%emt 0:05:30]} 17. Bd1 {[%emt 0:04:17]} Nf5 {[%emt 0:03:45]} 18. Bc2 {[%emt 0:05:09]} c6 {[%emt 0:08:35]} 19. g3 {[%emt 0:03:19]} Bc7 {[%emt 0:05:48]} 20. Qd3 {[%emt 0:06:25]} Rae8 {[%emt 0:03:34]} 21. Rae1 {[%emt 0:02:01]} Qg6 {[%emt 0:04:41]} 22. Bc1 {[%emt 0:09:33]} Re6 {[%emt 0:05:02]} 23. Ba3 {[%emt 0:02:13]} Rf7 {[%emt 0:00:56]} 24. Rxe6 {[%emt 0:05:45]} Qxe6 {[%emt 0:00:20]} 25. g4 {[%emt 0:02:15]} Qg6 {[%emt 0:01:15]} 26. Qe2 {[%emt 0:04:41]} Rf6 {[%emt 0:11:14]} 27. Kh1 {[%emt 0:10:35]} Re6 {[%emt 0:05:32]} 28. gxf5 {[%emt 0:00:14]} Rxe2 {[%emt 0:00:33]} 29. fxg6 {[%emt 0:00:04]} b6 {[%emt 0:03:19]} 30. Bd3 {[%emt 0:02:29]} Re6 {[%emt 0:00:24]} 31. Kg2 {[%emt 0:01:19]} Bd6 {[%emt 0:00:06]} 32. Bxd6 {[%emt 0:01:15]} Rxd6 {[%emt 0:00:04]} 33. Re1 {[%emt 0:00:18]} Kf8 {[%emt 0:00:28]} 34. f4 {[%emt 0:00:23]} Rf6 {[%emt 0:01:23]} 35. f5 {[%emt 0:00:22]} b5 {[%emt 0:00:48]} 36. Kg3 {[%emt 0:02:01]} a6 {[%emt 0:00:05]} 37. Kf4 {[%emt 0:00:39]} c5 {[%emt 0:00:42]} 38. Re6 {[%emt 0:01:54]} 1-0

[Event "Mitropa Online Cup Women 2021"]
[Site "Hybrid"]
[Date "2021.05.04"]
[Round "9.2"]
[White "Trippold, Denise"]
[Black "Zimina, Olga"]
[Result "0-1"]
[ECO "E15"]
[WhiteElo "2145"]
[BlackElo "2341"]
[Annotator "NA"]
[PlyCount "178"]
[EventDate "2021.05.04"]
[EventType "team-tourn"]
[EventCountry "NET"]
[SourceTitle "playchess.com"]
[Source "ChessBase"]
[SourceQuality "1"]
[WhiteTeam "Austria"]
[BlackTeam "Italy"]
[WhiteTeamCountry "AUT"]
[BlackTeamCountry "ITA"]
[TimeControl "40/5400+30:1800+30"]

1. d4 {[%emt 0:00:00]} Nf6 {[%emt 0:00:10]} 2. c4 {[%emt 0:00:10]} e6 {[%emt 0:00:07]} 3. Nf3 {[%emt 0:00:08]} b6 {[%emt 0:00:13]} 4. g3 {[%emt 0:00:14]} Ba6 {[%emt 0:00:08]} 5. b3 {[%emt 0:00:13]} b5 {[%emt 0:00:08]} 6. cxb5 {[%emt 0:00:12]} Bxb5 {[%emt 0:00:10]} 7. Nc3 {[%emt 0:00:10]} Bc6 {[%emt 0:00:39]} 8. Bg2 {[%emt 0:01:58]} Qc8 {[%emt 0:01:31]} 9. O-O {[%emt 0:07:25]} Be7 {[%emt 0:01:01]} 10. Bb2 {[%emt 0:05:06]} O-O {[%emt 0:08:19]} 11. Rc1 {[%emt 0:03:49]} a5 {[%emt 0:07:31]} 12. Qc2 {[%emt 0:02:24]} Bb4 {[%emt 0:04:28]} 13. Ne5 {[%emt 0:07:28]} Bxg2 {[%emt 0:00:37]} 14. Kxg2 {[%emt 0:00:08]} Qb7+ {[%emt 0:00:37]} 15. Kg1 {[%emt 0:04:02]} d6 {[%emt 0:35:18]} 16. Nd3 {[%emt 0:03:53]} Bxc3 {[%emt 0:00:47]} 17. Bxc3 {[%emt 0:05:56]} Nbd7 {[%emt 0:00:13]} 18. f3 {[%emt 0:10:25]} Nd5 {[%emt 0:01:16]} 19. Bd2 {[%emt 0:01:48]} Qb6 {[%emt 0:00:51]} 20. e3 {[%emt 0:04:48]} Ra6 {[%emt 0:14:16]} 21. Kh1 {[%emt 0:10:02]} Rc8 {[%emt 0:01:27]} 22. Nb2 {[%emt 0:06:50]} Nb4 {[%emt 0:02:34]} 23. Qb1 {[%emt 0:01:15]} Rb8 {[%emt 0:01:58]} 24. Nc4 {[%emt 0:07:25]} Qb7 {[%emt 0:02:31]} 25. Kg2 {[%emt 0:03:21]} c5 {[%emt 0:01:22]} 26. dxc5 {[%emt 0:06:04]} Nxc5 {[%emt 0:00:20]} 27. Bxb4 {[%emt 0:00:54]} Qxb4 {[%emt 0:03:04]} 28. Rfd1 {[%emt 0:01:55]} Nd7 {[%emt 0:03:48]} 29. Rd4 {[%emt 0:02:11]} e5 {[%emt 0:01:03]} 30. Nxe5 {[%emt 0:01:36]} Qb5 {[%emt 0:00:16]} 31. Nxd7 {[%emt 0:01:00]} Qxd7 {[%emt 0:00:45]} 32. Qd3 {[%emt 0:00:15]} Rab6 {[%emt 0:02:52]} 33. Rdc4 {[%emt 0:01:17]} h6 {[%emt 0:01:47]} 34. Qc3 {[%emt 0:00:40]} Qb5 {[%emt 0:01:21]} 35. Qd3 {[%emt 0:01:24]} Qd7 {[%emt 0:00:30]} 36. Qd5 {[%emt 0:00:46]} Rb5 {[%emt 0:00:31]} 37. Qd4 {[%emt 0:00:14]} Rh5 {[%emt 0:00:27]} 38. g4 {[%emt 0:00:21]} Re5 {[%emt 0:01:40]} 39. Rd1 {[%emt 0:00:51]} Rbe8 {[%emt 0:00:10]} 40. e4 {[%emt 0:00:00]} R8e6 {[%emt 0:00:00]} 41. Rd2 {[%emt 0:03:43]} h5 {[%emt 0:06:40]} 42. h3 {[%emt 0:00:59]} Qb7 {[%emt 0:06:28]} 43. Qd3 {[%emt 0:05:00]} Rh6 {[%emt 0:10:25]} 44. Rd4 {[%emt 0:06:24]} hxg4 {[%emt 0:01:05]} 45. hxg4 {[%emt 0:00:13]} Ree6 {[%emt 0:00:39]} 46. Rd5 {[%emt 0:08:23]} Qe7 {[%emt 0:01:09]} 47. g5 {[%emt 0:08:10]} Rh5 {[%emt 0:01:55]} 48. Kf2 {[%emt 0:00:12]} Rxg5 {[%emt 0:03:32]} 49. Rxd6 {[%emt 0:02:03]} Rh5 {[%emt 0:01:41]} 50. Rxe6 {[%emt 0:00:25]} Qxe6 {[%emt 0:00:50]} 51. Qd6 {[%emt 0:00:44]} Qh3 {[%emt 0:01:02]} 52. Ke3 {[%emt 0:00:21]} Qf1 {[%emt 0:00:29]} 53. Qd8+ {[%emt 0:00:11]} Kh7 {[%emt 0:00:13]} 54. Qd3 {[%emt 0:00:52]} Qg1+ {[%emt 0:00:32]} 55. Rf2 {[%emt 0:00:02]} Rh2 {[%emt 0:00:33]} 56. Qf1 {[%emt 0:01:01]} Qg5+ {[%emt 0:00:09]} 57. f4 {[%emt 0:00:30]} Qc5+ {[%emt 0:00:18]} 58. Kf3 {[%emt 0:00:26]} Qc3+ {[%emt 0:02:49]} 59. Kg4 {[%emt 0:00:36]} Rh6 {[%emt 0:00:05]} 60. f5 {[%emt 0:00:04]} Qe3 {[%emt 0:00:44]} 61. Qg2 {[%emt 0:00:22]} f6 {[%emt 0:00:26]} 62. Re2 {[%emt 0:00:53]} Qc1 {[%emt 0:00:05]} 63. Kf3 {[%emt 0:00:39]} Qd1 {[%emt 0:00:34]} 64. Ke3 {[%emt 0:00:20]} a4 {[%emt 0:01:28]} 65. bxa4 {[%emt 0:00:16]} Qxa4 {[%emt 0:00:12]} 66. Rd2 {[%emt 0:00:50]} Qa3+ {[%emt 0:00:17]} 67. Ke2 {[%emt 0:00:06]} Qa6+ {[%emt 0:00:11]} 68. Ke3 {[%emt 0:00:07]} Qb6+ {[%emt 0:00:15]} 69. Ke2 {[%emt 0:00:11]} Qb5+ {[%emt 0:00:03]} 70. Kf3 {[%emt 0:00:27]} Qe5 {[%emt 0:00:43]} 71. Rc2 {[%emt 0:00:44]} Qd6 {[%emt 0:00:52]} 72. Rd2 {[%emt 0:00:42]} Qb4 {[%emt 0:00:48]} 73. Ke2 {[%emt 0:01:10]} Qa5 {[%emt 0:00:13]} 74. Kf3 {[%emt 0:00:16]} Kh8 {[%emt 0:00:39]} 75. Rc2 {[%emt 0:00:35]} Qa3+ {[%emt 0:00:20]} 76. Kg4 {[%emt 0:00:45]} Qe3 {[%emt 0:00:31]} 77. Re2 {[%emt 0:00:04]} Qg5+ {[%emt 0:00:35]} 78. Kf3 {[%emt 0:00:03]} Qc1 {[%emt 0:01:02]} 79. Rc2 {[%emt 0:00:54]} Qd1+ {[%emt 0:00:12]} 80. Ke3 {[%emt 0:00:07]} Qe1+ {[%emt 0:01:10]} 81. Kd3 {[%emt 0:00:03]} Qd1+ {[%emt 0:00:22]} 82. Ke3 {[%emt 0:00:11]} Qd8 {[%emt 0:00:26]} 83. Kf3 {[%emt 0:02:09]} Rh4 {[%emt 0:01:03]} 84. Qd2 {[%emt 0:00:23]} Qb8 {[%emt 0:00:12]} 85. Rc3 {[%emt 0:00:37]} Qe5 {[%emt 0:00:32]} 86. Rb3 {[%emt 0:00:32]} Qxe4+ {[%emt 0:00:13]} 87. Kg3 {[%emt 0:00:18]} Qg4+ {[%emt 0:00:10]} 88. Kf2 {[%emt 0:00:03]} Rh2+ {[%emt 0:00:04]} 89. Ke3 {[%emt 0:00:10]} Qg5+ {[%emt 0:00:06]} 0-1